[Event "*** Titled Tuesday Blitz"]
[Site "Chess.com"]
[Date "2020.10.27"]
[Round "10"]
[White "vova-79"]
[Black "MarceloPlaya"]
[Result "1-0"]
[WhiteElo "2495"]
[BlackElo "2265"]
[TimeControl "180+1"]
[EndTime "11:56:56 PDT"]
[Termination "vova-79 won on time"]

1. d4 {[%clk 0:03:00.9]} 1... e6 {[%clk 0:02:59.8]} 2. c4 {[%clk 0:02:59.6]}
2... Nf6 {[%clk 0:02:59.2]} 3. Nc3 {[%clk 0:02:58.5]} 3... Bb4 {[%clk 0:02:59]}
4. e3 {[%clk 0:02:57.8]} 4... O-O {[%clk 0:02:58]} 5. Ne2 {[%clk 0:02:57.8]}
5... c5 {[%clk 0:02:58]} 6. a3 {[%clk 0:02:57.8]} 6... Bxc3+ {[%clk 0:02:57.6]}
7. Nxc3 {[%clk 0:02:58.7]} 7... d6 {[%clk 0:02:55.6]} 8. b4 {[%clk 0:02:51.4]}
8... cxb4 {[%clk 0:02:50.3]} 9. axb4 {[%clk 0:02:50.4]} 9... Nc6 {[%clk
0:02:41.6]} 10. b5 {[%clk 0:02:48.2]} 10... Ne7 {[%clk 0:02:41.4]} 11. Ba3
{[%clk 0:02:45.4]} 11... Qc7 {[%clk 0:02:40]} 12. Be2 {[%clk 0:02:42.6]} 12...
d5 {[%clk 0:02:32.2]} 13. c5 {[%clk 0:02:40.2]} 13... b6 {[%clk 0:02:30.1]} 14.
O-O {[%clk 0:02:27.4]} 14... Bb7 {[%clk 0:02:14.3]} 15. Qb3 {[%clk 0:02:09.7]}
15... e5 {[%clk 0:01:40.9]} 16. c6 {[%clk 0:01:45]} 16... Bc8 {[%clk 0:01:38.5]}
17. Bxe7 {[%clk 0:01:38.2]} 17... Qxe7 {[%clk 0:01:36.4]} 18. Nxd5 {[%clk
0:01:38]} 18... Nxd5 {[%clk 0:01:29.8]} 19. Qxd5 {[%clk 0:01:38.9]} 19... exd4
{[%clk 0:01:27]} 20. Qxd4 {[%clk 0:01:39.8]} 20... Rd8 {[%clk 0:01:23.8]} 21.
Qc3 {[%clk 0:01:38.4]} 21... Be6 {[%clk 0:01:16.3]} 22. Rfc1 {[%clk 0:01:29]}
22... Rd5 {[%clk 0:01:11.7]} 23. Rd1 {[%clk 0:01:13.3]} 23... Rc5 {[%clk
0:01:09.8]} 24. Qd4 {[%clk 0:01:10.9]} 24... Rd5 {[%clk 0:00:57]} 25. Qxb6
{[%clk 0:00:37.9]} 25... Rxd1+ {[%clk 0:00:42.9]} 26. Bxd1 {[%clk 0:00:38.8]}
26... axb6 {[%clk 0:00:18.3]} 27. Rxa8+ {[%clk 0:00:39.7]} 27... Qf8 {[%clk
0:00:18.4]} 28. Rxf8+ {[%clk 0:00:38]} 28... Kxf8 {[%clk 0:00:18.2]} 29. e4
{[%clk 0:00:35.6]} 29... Ke7 {[%clk 0:00:17.8]} 30. Be2 {[%clk 0:00:30.3]} 30...
Kd6 {[%clk 0:00:16.7]} 31. f3 {[%clk 0:00:30]} 31... Kc5 {[%clk 0:00:16]} 32.
Kf2 {[%clk 0:00:29.6]} 32... f6 {[%clk 0:00:15.1]} 33. Ke3 {[%clk 0:00:29]}
33... Bf7 {[%clk 0:00:14.2]} 34. f4 {[%clk 0:00:27.8]} 34... Be6 {[%clk
0:00:13.3]} 35. h3 {[%clk 0:00:27.4]} 35... g6 {[%clk 0:00:12.2]} 36. Bg4 {[%clk
0:00:24.8]} 36... f5 {[%clk 0:00:11.9]} 37. exf5 {[%clk 0:00:24.4]} 37... gxf5
{[%clk 0:00:11.8]} 38. Be2 {[%clk 0:00:24.1]} 38... Bd5 {[%clk 0:00:11.2]} 39.
g4 {[%clk 0:00:22.6]} 39... fxg4 {[%clk 0:00:10.6]} 40. hxg4 {[%clk 0:00:22.2]}
40... Be6 {[%clk 0:00:10]} 41. f5 {[%clk 0:00:21.6]} 41... Bf7 {[%clk
0:00:07.2]} 42. Kf4 {[%clk 0:00:21.4]} 42... Kd6 {[%clk 0:00:05.5]} 43. g5
{[%clk 0:00:18.1]} 43... Ke7 {[%clk 0:00:02.8]} 44. Ke5 {[%clk 0:00:17.3]} 44...
Be8 {[%clk 0:00:02.3]} 45. Bd3 {[%clk 0:00:15.6]} 45... Kd8 {[%clk 0:00:01.1]}
46. Kd6 {[%clk 0:00:14.8]} 1-0

[Event "*** Titled Tuesday Blitz"]
[Site "Chess.com"]
[Date "2020.10.27"]
[Round "10"]
[White "JozefKneht"]
[Black "druskacik"]
[Result "1-0"]
[WhiteElo "2428"]
[BlackElo "2581"]
[TimeControl "180+1"]
[EndTime "11:56:57 PDT"]
[Termination "JozefKneht won on time"]

1. Nf3 {[%clk 0:03:00.9]} 1... c5 {[%clk 0:00:18.6]} 2. e4 {[%clk 0:02:55.1]}
2... Nc6 {[%clk 0:00:18.4]} 3. d4 {[%clk 0:02:55.1]} 3... cxd4 {[%clk
0:00:19.3]} 4. Nxd4 {[%clk 0:02:55]} 4... g6 {[%clk 0:00:20.2]} 5. c4 {[%clk
0:02:54]} 5... Bg7 {[%clk 0:00:19.6]} 6. Be3 {[%clk 0:02:54.3]} 6... Nf6 {[%clk
0:00:20.3]} 7. Nc3 {[%clk 0:02:54.4]} 7... O-O {[%clk 0:00:20.8]} 8. Be2 {[%clk
0:02:54.5]} 8... d6 {[%clk 0:00:21.5]} 9. Qd2 {[%clk 0:02:55]} 9... Bd7 {[%clk
0:00:21.9]} 10. f3 {[%clk 0:02:55.2]} 10... Nxd4 {[%clk 0:00:22.2]} 11. Bxd4
{[%clk 0:02:55.2]} 11... a5 {[%clk 0:00:23.1]} 12. b3 {[%clk 0:02:53.8]} 12...
Bc6 {[%clk 0:00:23.5]} 13. O-O {[%clk 0:02:50.6]} 13... Nd7 {[%clk 0:00:24.1]}
14. Be3 {[%clk 0:02:49.8]} 14... Nc5 {[%clk 0:00:23.8]} 15. Rab1 {[%clk
0:02:49.4]} 15... Qb6 {[%clk 0:00:24.1]} 16. Rfc1 {[%clk 0:02:48.1]} 16... Rfc8
{[%clk 0:00:24.7]} 17. Rc2 {[%clk 0:02:39.7]} 17... h5 {[%clk 0:00:24.6]} 18.
Bf1 {[%clk 0:02:27.9]} 18... Qd8 {[%clk 0:00:23.8]} 19. Qf2 {[%clk 0:02:23.3]}
19... Ne6 {[%clk 0:00:22.8]} 20. a3 {[%clk 0:02:13.6]} 20... Kh7 {[%clk
0:00:22.4]} 21. b4 {[%clk 0:02:06.1]} 21... axb4 {[%clk 0:00:23.3]} 22. axb4
{[%clk 0:02:05.7]} 22... Ra3 {[%clk 0:00:23.4]} 23. Qd2 {[%clk 0:01:39.9]} 23...
Rca8 {[%clk 0:00:22.5]} 24. Kh1 {[%clk 0:01:35]} 24... Qh8 {[%clk 0:00:21.8]}
25. Nd5 {[%clk 0:01:32.5]} 25... Bxd5 {[%clk 0:00:21.2]} 26. exd5 {[%clk
0:01:32]} 26... Nd4 {[%clk 0:00:21.7]} 27. Bxd4 {[%clk 0:00:55.3]} 27... Bxd4
{[%clk 0:00:22.6]} 28. c5 {[%clk 0:00:55.6]} 28... Qf6 {[%clk 0:00:17.6]} 29. c6
{[%clk 0:00:54.3]} 29... bxc6 {[%clk 0:00:17.2]} 30. dxc6 {[%clk 0:00:53.9]}
30... Be5 {[%clk 0:00:18.1]} 31. Qf2 {[%clk 0:00:39.3]} 31... h4 {[%clk
0:00:17.2]} 32. b5 {[%clk 0:00:37.9]} 32... Qf4 {[%clk 0:00:11.8]} 33. g3 {[%clk
0:00:36.4]} 33... hxg3 {[%clk 0:00:11.8]} 34. hxg3 {[%clk 0:00:36.6]} 34... Qf5
{[%clk 0:00:12.7]} 35. f4 {[%clk 0:00:36.7]} 35... Kg7 {[%clk 0:00:11.3]} 36.
Kg1 {[%clk 0:00:29.7]} 36... Bf6 {[%clk 0:00:10.5]} 37. b6 {[%clk 0:00:28.6]}
37... Qe4 {[%clk 0:00:09.9]} 38. Bg2 {[%clk 0:00:26.6]} 38... Qd3 {[%clk
0:00:10.3]} 39. b7 {[%clk 0:00:16.4]} 39... Rh8 {[%clk 0:00:08.9]} 40. c7 {[%clk
0:00:14.2]} 40... Bd4 {[%clk 0:00:08.9]} 41. b8=Q {[%clk 0:00:13.1]} 41... Bxf2+
{[%clk 0:00:09.1]} 42. Kxf2 {[%clk 0:00:13]} 42... Qe3+ {[%clk 0:00:08.6]} 43.
Kf1 {[%clk 0:00:13.1]} 43... Qd3+ {[%clk 0:00:08]} 44. Ke1 {[%clk 0:00:12.2]}
44... Qxg3+ {[%clk 0:00:05.9]} 45. Rf2 {[%clk 0:00:10]} 45... Re3+ {[%clk
0:00:04.5]} 46. Kf1 {[%clk 0:00:10]} 1-0

[Event "*** Titled Tuesday Blitz"]
[Site "Chess.com"]
[Date "2020.10.27"]
[Round "10"]
[White "natelleka"]
[Black "sopo-tereladze"]
[Result "0-1"]
[WhiteElo "2193"]
[BlackElo "2318"]
[TimeControl "180+1"]
[EndTime "11:57:00 PDT"]
[Termination "sopo-tereladze won on time"]

1. e4 {[%clk 0:03:00.9]} 1... e5 {[%clk 0:02:53.9]} 2. Nf3 {[%clk 0:03:00.9]}
2... Nc6 {[%clk 0:02:54.2]} 3. Bb5 {[%clk 0:03:01.2]} 3... a6 {[%clk 0:02:53.6]}
4. Ba4 {[%clk 0:03:01.7]} 4... Nf6 {[%clk 0:02:53.3]} 5. O-O {[%clk 0:03:02.2]}
5... Be7 {[%clk 0:02:53.7]} 6. Re1 {[%clk 0:03:02.2]} 6... b5 {[%clk 0:02:54.2]}
7. Bb3 {[%clk 0:03:02.5]} 7... O-O {[%clk 0:02:54.9]} 8. d4 {[%clk 0:03:01.2]}
8... d6 {[%clk 0:02:53.3]} 9. c3 {[%clk 0:03:00.6]} 9... Bg4 {[%clk 0:02:47]}
10. Be3 {[%clk 0:02:59.9]} 10... Na5 {[%clk 0:02:36.4]} 11. Bc2 {[%clk
0:02:59.2]} 11... Nc4 {[%clk 0:02:35.4]} 12. Bc1 {[%clk 0:02:59.7]} 12... exd4
{[%clk 0:02:33.1]} 13. cxd4 {[%clk 0:02:56.6]} 13... c5 {[%clk 0:02:32.9]} 14.
b3 {[%clk 0:02:44.3]} 14... Nb6 {[%clk 0:02:31.9]} 15. Nbd2 {[%clk 0:02:31.8]}
15... cxd4 {[%clk 0:02:12.9]} 16. Bb2 {[%clk 0:02:30.4]} 16... Nbd7 {[%clk
0:02:07.5]} 17. Bxd4 {[%clk 0:02:25.7]} 17... Ne5 {[%clk 0:02:07.3]} 18. h3
{[%clk 0:02:19.6]} 18... Bh5 {[%clk 0:02:02.4]} 19. g4 {[%clk 0:02:08.8]} 19...
Nxf3+ {[%clk 0:01:21.3]} 20. Qxf3 {[%clk 0:01:57.2]} 20... Bg6 {[%clk
0:01:22.2]} 21. Rad1 {[%clk 0:01:55.1]} 21... Nd7 {[%clk 0:01:17]} 22. Nf1
{[%clk 0:01:44.6]} 22... Rc8 {[%clk 0:01:11.3]} 23. Bb1 {[%clk 0:01:39.2]} 23...
Qc7 {[%clk 0:00:57.6]} 24. Qg3 {[%clk 0:01:35.2]} 24... Ne5 {[%clk 0:00:54]} 25.
f4 {[%clk 0:01:29]} 25... Bh4 {[%clk 0:00:52.5]} 26. Qe3 {[%clk 0:01:16.3]}
26... Bxe1 {[%clk 0:00:51.3]} 27. Rxe1 {[%clk 0:01:10.9]} 27... Nc6 {[%clk
0:00:45.1]} 28. f5 {[%clk 0:01:10.5]} 28... Nxd4 {[%clk 0:00:44.5]} 29. Qxd4
{[%clk 0:01:05.7]} 29... Rce8 {[%clk 0:00:31.9]} 30. Ne3 {[%clk 0:00:59.3]}
30... d5 {[%clk 0:00:25.4]} 31. fxg6 {[%clk 0:00:53.9]} 31... Qg3+ {[%clk
0:00:22.8]} 32. Ng2 {[%clk 0:00:53.1]} 32... fxg6 {[%clk 0:00:20.6]} 33. Qxd5+
{[%clk 0:00:45.4]} 33... Kh8 {[%clk 0:00:20.4]} 34. Qc5 {[%clk 0:00:39.3]} 34...
Rf3 {[%clk 0:00:16.1]} 35. Rf1 {[%clk 0:00:29.7]} 35... Rxf1+ {[%clk 0:00:12.5]}
36. Kxf1 {[%clk 0:00:29.8]} 36... Qxh3 {[%clk 0:00:12.7]} 37. Kg1 {[%clk
0:00:20.6]} 37... Qxg4 {[%clk 0:00:12.1]} 38. Bc2 {[%clk 0:00:15.8]} 38... h5
{[%clk 0:00:10.5]} 39. e5 {[%clk 0:00:14.8]} 39... Qg5 {[%clk 0:00:08.5]} 40.
Qc6 {[%clk 0:00:07.5]} 40... Rxe5 {[%clk 0:00:08.5]} 41. Bxg6 {[%clk 0:00:04.4]}
41... Re1+ {[%clk 0:00:07.3]} 42. Kf2 {[%clk 0:00:01.6]} 42... Qd2+ {[%clk
0:00:06.8]} 43. Kg3 {[%clk 0:00:01.1]} 43... Qg5+ {[%clk 0:00:04.8]} 0-1

[Event "*** Titled Tuesday Blitz"]
[Site "Chess.com"]
[Date "2020.10.27"]
[Round "10"]
[White "geordie_derraugh"]
[Black "Paladin61"]
[Result "0-1"]
[WhiteElo "2408"]
[BlackElo "2591"]
[TimeControl "180+1"]
[EndTime "11:57:01 PDT"]
[Termination "Paladin61 won by resignation"]

1. e4 {[%clk 0:03:00.9]} 1... g6 {[%clk 0:03:00.1]} 2. d4 {[%clk 0:03:00.5]}
2... Bg7 {[%clk 0:02:59.3]} 3. Nf3 {[%clk 0:03:00.7]} 3... d6 {[%clk 0:02:59.2]}
4. h3 {[%clk 0:03:00.9]} 4... Nf6 {[%clk 0:02:56.8]} 5. Bd3 {[%clk 0:03:01.1]}
5... O-O {[%clk 0:02:54.3]} 6. O-O {[%clk 0:03:01.7]} 6... Nc6 {[%clk
0:02:49.7]} 7. c3 {[%clk 0:03:01.8]} 7... e5 {[%clk 0:02:48.9]} 8. Bg5 {[%clk
0:03:01.2]} 8... h6 {[%clk 0:02:48]} 9. Bh4 {[%clk 0:02:58.1]} 9... Qe8 {[%clk
0:02:45.2]} 10. Re1 {[%clk 0:02:52.8]} 10... Nh5 {[%clk 0:02:44.3]} 11. Bg3
{[%clk 0:02:52.1]} 11... Nxg3 {[%clk 0:02:42.8]} 12. fxg3 {[%clk 0:02:49.8]}
12... exd4 {[%clk 0:02:43.1]} 13. Kh2 {[%clk 0:02:44.3]} 13... Be6 {[%clk
0:02:29.8]} 14. Bb5 {[%clk 0:02:38.2]} 14... dxc3 {[%clk 0:02:18.8]} 15. Nxc3
{[%clk 0:02:39.1]} 15... a6 {[%clk 0:02:18.4]} 16. Ba4 {[%clk 0:02:36.3]} 16...
b5 {[%clk 0:02:17.2]} 17. Bc2 {[%clk 0:02:25]} 17... Ne5 {[%clk 0:02:01.5]} 18.
Nd5 {[%clk 0:01:53.7]} 18... Rc8 {[%clk 0:01:50.7]} 19. Rb1 {[%clk 0:01:50.8]}
19... c6 {[%clk 0:01:42.6]} 20. Nb4 {[%clk 0:01:49.2]} 20... a5 {[%clk
0:01:28.2]} 21. Nd3 {[%clk 0:01:49.2]} 21... Nxd3 {[%clk 0:01:07.3]} 22. Qxd3
{[%clk 0:01:47.9]} 22... Bxa2 {[%clk 0:01:07.2]} 23. Ra1 {[%clk 0:01:46.1]}
23... Bc4 {[%clk 0:01:06.6]} 24. Qxd6 {[%clk 0:01:45.9]} 24... Bxb2 {[%clk
0:01:06.6]} 25. Rxa5 {[%clk 0:01:37.2]} 25... Bc3 {[%clk 0:01:05.7]} 26. Ra7
{[%clk 0:01:29.3]} 26... Bxe1 {[%clk 0:01:04.3]} 27. Nxe1 {[%clk 0:01:30.2]}
27... Qe6 {[%clk 0:00:59.1]} 28. Qf4 {[%clk 0:01:29.7]} 28... g5 {[%clk
0:00:53.9]} 29. Qe3 {[%clk 0:01:29.7]} 29... Ra8 {[%clk 0:00:47.2]} 30. Rc7
{[%clk 0:01:28.6]} 30... Rfc8 {[%clk 0:00:41.2]} 31. Rb7 {[%clk 0:01:28.6]}
31... Rcb8 {[%clk 0:00:38]} 32. Rc7 {[%clk 0:01:28]} 32... Qd6 {[%clk
0:00:35.3]} 33. Ra7 {[%clk 0:01:13.3]} 33... Rxa7 {[%clk 0:00:28.4]} 34. Qxa7
{[%clk 0:01:14.2]} 34... b4 {[%clk 0:00:27.3]} 35. e5 {[%clk 0:01:02.1]} 35...
Qxe5 {[%clk 0:00:25]} 36. Nf3 {[%clk 0:01:02.4]} 36... Qd6 {[%clk 0:00:24.4]}
37. Nd4 {[%clk 0:00:53.1]} 37... Re8 {[%clk 0:00:11.1]} 38. Nf5 {[%clk
0:00:49.4]} 38... Qf6 {[%clk 0:00:11.2]} 39. Qc5 {[%clk 0:00:44.4]} 39... Bd5
{[%clk 0:00:08.2]} 40. Qxb4 {[%clk 0:00:41.6]} 40... h5 {[%clk 0:00:07.8]} 41.
Qd2 {[%clk 0:00:23.3]} 41... h4 {[%clk 0:00:05.6]} 42. Qd3 {[%clk 0:00:16.8]}
42... Qe5 {[%clk 0:00:04.3]} 43. Qd2 {[%clk 0:00:12.8]} 43... hxg3+ {[%clk
0:00:04]} 44. Nxg3 {[%clk 0:00:13.7]} 44... Qf4 {[%clk 0:00:03.9]} 45. Qd3
{[%clk 0:00:12]} 45... Re3 {[%clk 0:00:03.8]} 46. Qh7+ {[%clk 0:00:11.9]} 46...
Kf8 {[%clk 0:00:04.2]} 47. Qh8+ {[%clk 0:00:09.4]} 47... Ke7 {[%clk 0:00:04.6]}
48. Kg1 {[%clk 0:00:05.9]} 48... Qxg3 {[%clk 0:00:05.5]} 49. Qa1 {[%clk
0:00:04.3]} 49... Re1+ {[%clk 0:00:05.5]} 0-1

[Event "*** Titled Tuesday Blitz"]
[Site "Chess.com"]
[Date "2020.10.27"]
[Round "10"]
[White "ural58"]
[Black "SilviusTiberius"]
[Result "1-0"]
[WhiteElo "2360"]
[BlackElo "2501"]
[TimeControl "180+1"]
[EndTime "11:57:12 PDT"]
[Termination "ural58 won by resignation"]

1. e4 {[%clk 0:02:56.7]} 1... e5 {[%clk 0:02:59.1]} 2. f4 {[%clk 0:02:56.1]}
2... exf4 {[%clk 0:02:58.8]} 3. Bc4 {[%clk 0:02:56]} 3... d6 {[%clk 0:02:57.1]}
4. Nc3 {[%clk 0:02:54.5]} 4... Nf6 {[%clk 0:02:56.5]} 5. d4 {[%clk 0:02:51.3]}
5... g5 {[%clk 0:02:45.5]} 6. h4 {[%clk 0:02:50.2]} 6... Ng4 {[%clk 0:02:38.4]}
7. Nf3 {[%clk 0:02:38.8]} 7... Bh6 {[%clk 0:02:29.3]} 8. hxg5 {[%clk 0:02:35.6]}
8... Bxg5 {[%clk 0:02:30.2]} 9. Nd5 {[%clk 0:02:25.1]} 9... Ne3 {[%clk
0:02:14.6]} 10. Bxe3 {[%clk 0:02:16.4]} 10... fxe3 {[%clk 0:02:15.5]} 11. Nxg5
{[%clk 0:01:01.5]} 11... Qxg5 {[%clk 0:02:14.4]} 12. Qf3 {[%clk 0:01:01.9]}
12... Kd8 {[%clk 0:01:34.9]} 13. Nxe3 {[%clk 0:01:01.3]} 13... Nc6 {[%clk
0:01:26.4]} 14. O-O-O {[%clk 0:00:59.9]} 14... Be6 {[%clk 0:01:26.6]} 15. Bxe6
{[%clk 0:00:48]} 15... fxe6 {[%clk 0:01:27.1]} 16. Kb1 {[%clk 0:00:47.8]} 16...
Ke7 {[%clk 0:01:08.3]} 17. Qh3 {[%clk 0:00:38.6]} 17... Raf8 {[%clk 0:00:52.5]}
18. d5 {[%clk 0:00:38.4]} 18... Nd8 {[%clk 0:00:50.2]} 19. dxe6 {[%clk
0:00:37.9]} 19... Nxe6 {[%clk 0:00:47.2]} 20. Nd5+ {[%clk 0:00:37.3]} 20... Kd7
{[%clk 0:00:47.3]} 21. Nxc7 {[%clk 0:00:36]} 21... Kxc7 {[%clk 0:00:47.9]} 22.
Qxe6 {[%clk 0:00:35.9]} 22... Qe5 {[%clk 0:00:48.3]} 23. Qxe5 {[%clk 0:00:23]}
23... dxe5 {[%clk 0:00:49.2]} 24. Rd5 {[%clk 0:00:23.1]} 24... Rf2 {[%clk
0:00:39.3]} 25. Rxe5 {[%clk 0:00:22.3]} 25... Rxg2 {[%clk 0:00:39.4]} 26. b3
{[%clk 0:00:22.9]} 26... Rg7 {[%clk 0:00:30.5]} 27. Kb2 {[%clk 0:00:20.5]} 27...
b6 {[%clk 0:00:29.6]} 28. a4 {[%clk 0:00:20.7]} 28... a5 {[%clk 0:00:29]} 29.
Rh6 {[%clk 0:00:21.2]} 29... Rb8 {[%clk 0:00:22.8]} 30. Reh5 {[%clk 0:00:20.5]}
30... Rh8 {[%clk 0:00:22.1]} 31. Rb5 {[%clk 0:00:20.3]} 31... Rb8 {[%clk
0:00:21.3]} 32. c4 {[%clk 0:00:20.9]} 32... Rb7 {[%clk 0:00:20.5]} 33. Ka3
{[%clk 0:00:21]} 33... Re7 {[%clk 0:00:20.9]} 34. Rbh5 {[%clk 0:00:20]} 34...
Kb8 {[%clk 0:00:20.6]} 35. Rf5 {[%clk 0:00:18.9]} 35... Rxe4 {[%clk 0:00:20.2]}
36. Rf8+ {[%clk 0:00:18.9]} 36... Ka7 {[%clk 0:00:20.5]} 37. Rd6 {[%clk
0:00:18.8]} 37... Rg7 {[%clk 0:00:19.3]} 38. Rdd8 {[%clk 0:00:18.7]} 38... Re2
{[%clk 0:00:17.4]} 39. Ra8+ {[%clk 0:00:18.8]} 39... Kb7 {[%clk 0:00:17.9]} 40.
Rfb8+ {[%clk 0:00:19]} 40... Kc7 {[%clk 0:00:18.5]} 41. Rc8+ {[%clk 0:00:17.4]}
41... Kd7 {[%clk 0:00:18.7]} 42. Rd8+ {[%clk 0:00:16]} 42... Kc6 {[%clk
0:00:19.1]} 43. Rac8+ {[%clk 0:00:15.2]} 43... Rc7 {[%clk 0:00:19.3]} 44. Rb8
{[%clk 0:00:13.1]} 44... Rh2 {[%clk 0:00:17.2]} 45. Rd5 {[%clk 0:00:12.7]} 45...
Rg7 {[%clk 0:00:16.7]} 46. Rb5 {[%clk 0:00:12.6]} 46... Rgg2 {[%clk 0:00:15.2]}
47. R8xb6+ {[%clk 0:00:11.3]} 47... Kc7 {[%clk 0:00:15.7]} 48. Rb7+ {[%clk
0:00:11.4]} 48... Kd8 {[%clk 0:00:16.6]} 49. Rxa5 {[%clk 0:00:11.2]} 49... Ra2+
{[%clk 0:00:15.8]} 50. Kb4 {[%clk 0:00:11.4]} 50... Kc8 {[%clk 0:00:14.9]} 51.
Rg7 {[%clk 0:00:11]} 51... Kb8 {[%clk 0:00:14]} 52. Re5 {[%clk 0:00:09]} 52...
Rxa4+ {[%clk 0:00:12.1]} 53. Kxa4 {[%clk 0:00:07.3]} 53... Ra2+ {[%clk
0:00:11.6]} 54. Kb4 {[%clk 0:00:07.2]} 1-0

[Event "*** Titled Tuesday Blitz"]
[Site "Chess.com"]
[Date "2020.10.27"]
[Round "10"]
[White "MomchilPetkov"]
[Black "TregubovP"]
[Result "1-0"]
[WhiteElo "2646"]
[BlackElo "2528"]
[TimeControl "180+1"]
[EndTime "11:57:15 PDT"]
[Termination "MomchilPetkov won on time"]

1. d4 {[%clk 0:03:00.9]} 1... Nf6 {[%clk 0:02:59]} 2. Bf4 {[%clk 0:03:01.3]}
2... d5 {[%clk 0:02:57.9]} 3. e3 {[%clk 0:03:01.8]} 3... c5 {[%clk 0:02:58.4]}
4. Nd2 {[%clk 0:03:00.6]} 4... Nc6 {[%clk 0:02:58.8]} 5. c3 {[%clk 0:03:00.4]}
5... Bf5 {[%clk 0:02:48.8]} 6. Ngf3 {[%clk 0:03:00.5]} 6... h6 {[%clk
0:02:46.6]} 7. Qb3 {[%clk 0:02:45.7]} 7... Qc8 {[%clk 0:02:34.7]} 8. Ne5 {[%clk
0:02:41.1]} 8... e6 {[%clk 0:02:31.1]} 9. Bb5 {[%clk 0:02:36.2]} 9... Nd7 {[%clk
0:02:16.7]} 10. Ndf3 {[%clk 0:02:25.5]} 10... f6 {[%clk 0:01:52.3]} 11. Nxd7
{[%clk 0:02:20.8]} 11... Qxd7 {[%clk 0:01:52.2]} 12. c4 {[%clk 0:01:22]} 12...
a6 {[%clk 0:01:45.7]} 13. Bxc6 {[%clk 0:01:14.2]} 13... bxc6 {[%clk 0:01:32]}
14. O-O {[%clk 0:01:08.7]} 14... Be7 {[%clk 0:01:32.2]} 15. dxc5 {[%clk
0:01:07.5]} 15... Bxc5 {[%clk 0:01:25.3]} 16. Rac1 {[%clk 0:01:07.1]} 16... Bd6
{[%clk 0:01:15.4]} 17. Bxd6 {[%clk 0:01:06.6]} 17... Qxd6 {[%clk 0:01:15.6]} 18.
Nd4 {[%clk 0:00:53.3]} 18... Rb8 {[%clk 0:00:54.7]} 19. Qa4 {[%clk 0:00:50.7]}
19... O-O {[%clk 0:00:54]} 20. Qxc6 {[%clk 0:00:41.7]} 20... Qxc6 {[%clk
0:00:48.9]} 21. Nxc6 {[%clk 0:00:42.6]} 21... Rxb2 {[%clk 0:00:44.7]} 22. Ne7+
{[%clk 0:00:41]} 22... Kf7 {[%clk 0:00:44.8]} 23. Nxf5 {[%clk 0:00:41.1]} 23...
exf5 {[%clk 0:00:45.4]} 24. cxd5 {[%clk 0:00:41.6]} 24... Rd8 {[%clk 0:00:40.9]}
25. Rc7+ {[%clk 0:00:41.2]} 25... Kg6 {[%clk 0:00:38.7]} 26. g4 {[%clk
0:00:37.3]} 26... Rxd5 {[%clk 0:00:35.8]} 27. gxf5+ {[%clk 0:00:31.9]} 27...
Rxf5 {[%clk 0:00:35.2]} 28. a4 {[%clk 0:00:31.4]} 28... h5 {[%clk 0:00:32.2]}
29. Rc4 {[%clk 0:00:29.5]} 29... a5 {[%clk 0:00:31.7]} 30. h4 {[%clk 0:00:29.4]}
30... Kh6 {[%clk 0:00:26.5]} 31. Kg2 {[%clk 0:00:25.5]} 31... Kg6 {[%clk
0:00:20.2]} 32. Kg3 {[%clk 0:00:23.5]} 32... Kf7 {[%clk 0:00:19.5]} 33. Rc7+
{[%clk 0:00:22.5]} 33... Kg6 {[%clk 0:00:19.5]} 34. Rc4 {[%clk 0:00:22.3]} 34...
Kh6 {[%clk 0:00:19.6]} 35. Rd4 {[%clk 0:00:16.2]} 35... Ra2 {[%clk 0:00:19.6]}
36. Rc4 {[%clk 0:00:14.8]} 36... Kg6 {[%clk 0:00:19]} 37. Rd4 {[%clk 0:00:14.5]}
37... Rc5 {[%clk 0:00:18.2]} 38. Kf3 {[%clk 0:00:13.6]} 38... Rf5+ {[%clk
0:00:16.4]} 39. Kg3 {[%clk 0:00:14]} 39... Kh6 {[%clk 0:00:16.1]} 40. Rc4 {[%clk
0:00:13.8]} 40... g5 {[%clk 0:00:16.2]} 41. hxg5+ {[%clk 0:00:13.5]} 41... fxg5
{[%clk 0:00:15.5]} 42. Rc6+ {[%clk 0:00:12.9]} 42... Kg7 {[%clk 0:00:16.1]} 43.
Rb1 {[%clk 0:00:12.8]} 43... Rxa4 {[%clk 0:00:13.8]} 44. Rb7+ {[%clk 0:00:12.2]}
44... Rf7 {[%clk 0:00:13]} 45. Rxf7+ {[%clk 0:00:09.7]} 45... Kxf7 {[%clk
0:00:09.9]} 46. f4 {[%clk 0:00:10]} 46... gxf4+ {[%clk 0:00:06.7]} 47. exf4
{[%clk 0:00:09.5]} 47... Kg7 {[%clk 0:00:07.2]} 48. Ra6 {[%clk 0:00:09]} 48...
Kh7 {[%clk 0:00:05.9]} 49. Kh4 {[%clk 0:00:08.6]} 49... Rxf4+ {[%clk 0:00:04.9]}
50. Kxh5 {[%clk 0:00:07.6]} 50... a4 {[%clk 0:00:04.8]} 51. Ra7+ {[%clk
0:00:06.9]} 51... Kg8 {[%clk 0:00:03.7]} 52. Kg6 {[%clk 0:00:06.9]} 52... Rb4
{[%clk 0:00:04.4]} 53. Ra8+ {[%clk 0:00:06.2]} 1-0